bitfinex-derivatives/quotes_BTCF0:USTF0_20210708
["timestamp","ask_amount","ask_price","bid_price","bid_amount"]
[1625707352126,1.05101644,33340.0,33339.0,2.79522333]
[1625707352274,1.10801644,33340.0,33339.0,2.79522333]
[1625707353927,2.16301367,33340.0,33339.0,2.79522333]
[1625707354077,5.80085488,33340.0,33339.0,0.32277837]
[1625707354226,5.81644372,33340.0,33339.0,0.15757837]
[1625707354379,5.81644372,33340.0,33335.0,1.04943118]
[1625707354527,2.28629051,33336.0,33335.0,1.04943118]
[1625707354679,2.34329051,33336.0,33335.0,1.04943118]
[1625707354829,2.34329051,33336.0,33335.0,1.0535436]
[1625707355129,3.34329051,33336.0,33335.0,1.0535436]
[1625707355580,4.75003613,33336.0,33335.0,0.00411242]
[1625707355729,3.75003613,33336.0,33335.0,0.00411242]
[1625707355880,4.75003613,33336.0,33335.0,0.00411242]
[1625707356030,5.23118701,33336.0,33335.0,0.00411242]
[1625707356181,3.76744139,33336.0,33335.0,1.05435813]
[1625707356331,2.76744139,33336.0,33335.0,1.05435813]
[1625707356632,3.76744139,33336.0,33335.0,1.05435813]
[1625707356782,2.76744139,33336.0,33335.0,1.05435813]
[1625707357082,3.76744139,33336.0,33335.0,1.05435813]
[1625707357232,3.82444139,33336.0,33335.0,1.05435813]
[1625707357385,5.23163256,33336.0,33335.0,1.05435813]
[1625707359864,5.93563269,33336.0,33335.0,0.00411242]
[1625707360163,7.5201476,33336.0,33335.0,0.00411242]
[1625707361288,6.5201476,33336.0,33335.0,0.00411242]
[1625707361437,7.5201476,33336.0,33335.0,0.00411242]
[1625707362189,7.5201476,33336.0,33334.0,0.001]
[1625707362489,1.53815088,33336.0,33335.0,0.00411284]
[1625707362715,7.50459312,33336.0,33335.0,0.00411284]
[1625707362939,7.50459312,33336.0,33334.0,0.001]
[1625707363164,4.38754207,33335.0,33334.0,0.001]
[1625707363314,4.44454207,33335.0,33334.0,0.001]
[1625707363466,6.02395505,33335.0,33334.0,0.00511283]
[1625707363614,10.19815505,33335.0,33334.0,0.00511283]
[1625707363766,10.19815505,33335.0,33334.0,0.001]
[1625707363916,9.61874207,33335.0,33334.0,0.001]
[1625707364065,9.85931751,33335.0,33334.0,0.00511279]
[1625707364666,11.43844194,33335.0,33334.0,0.00511279]
[1625707364818,11.43844194,33335.0,33334.0,0.001]
[1625707364966,9.85931751,33335.0,33334.0,0.001]
[1625707365115,11.43817706,33335.0,33334.0,0.001]
[1625707365342,9.85931751,33335.0,33334.0,0.001]
[1625707365566,9.85931751,33335.0,33334.0,0.00511281]
[1625707366168,9.85931751,33335.0,33334.0,0.001]
[1625707366318,9.85931751,33335.0,33332.0,0.70278575]
[1625707366467,8.85931751,33335.0,33332.0,0.70278575]
[1625707366616,4.38597926,33333.0,33332.0,0.70278575]
[1625707366767,4.78758926,33333.0,33331.0,0.70360068]
[1625707366916,4.78758926,33333.0,33332.0,0.00411282]
[1625707367066,0.40161,33333.0,33332.0,0.00411282]
[1625707367216,4.78684105,33333.0,33332.0,0.00411282]
[1625707367369,5.78684105,33333.0,33332.0,0.00411282]
[1625707367516,5.78684105,33333.0,33332.0,0.70770931]
[1625707367967,5.78684105,33333.0,33332.0,0.00411282]
[1625707368117,6.02741649,33333.0,33332.0,0.00411282]
[1625707368268,6.02741649,33333.0,33330.0,0.70348141]
[1625707368416,6.02741649,33333.0,33330.0,0.63459423]
[1625707368417,3.67990425,33331.0,33330.0,0.63459423]
[1625707368567,3.73690425,33331.0,33330.0,0.63459423]
[1625707368717,4.73690425,33331.0,33328.0,1.05523653]
[1625707368868,2.45884326,33331.0,33330.0,0.00410875]
[1625707369021,2.45884326,33331.0,33329.0,1.05934979]
[1625707369169,1.05153028,33330.0,33329.0,1.05934979]
[1625707369319,1.10853028,33330.0,33329.0,1.0552411]
[1625707369470,2.10853028,33330.0,33329.0,1.0552411]
[1625707369620,3.51032835,33330.0,33329.0,0.00411582]
[1625707370148,3.99147923,33330.0,33329.0,0.00411582]
[1625707370447,3.99147923,33330.0,33328.0,0.00411582]
[1625707370673,2.27694957,33329.0,33328.0,0.00411582]
[1625707370822,2.33394957,33329.0,33328.0,0.00411582]
[1625707370973,3.33394957,33329.0,33328.0,1.05900707]
[1625707371199,2.33394957,33329.0,33328.0,1.05900707]
[1625707371348,3.33394957,33329.0,33328.0,1.05900707]
[1625707371873,3.33394957,33329.0,33328.0,0.00411582]
[1625707373376,2.33394957,33329.0,33328.0,0.00411582]
[1625707373675,3.33394957,33329.0,33328.0,0.00411582]
[1625707374124,3.42424957,33329.0,33328.0,0.00411582]
[1625707374275,3.42424957,33329.0,33327.0,0.00412245]
[1625707374425,3.42424957,33329.0,33328.0,0.00412245]
[1625707374726,3.42424957,33329.0,33327.0,0.00412249]
[1625707374876,1.04976779,33328.0,33327.0,0.00412249]
[1625707375026,1.10676779,33328.0,33327.0,0.00412249]
[1625707375177,2.10676779,33328.0,33327.0,0.00412249]
[1625707375775,2.10676779,33328.0,33326.0,0.36218192]
[1625707375776,1.10676779,33328.0,33326.0,0.36218192]
[1625707375929,5.22855745,33328.0,33323.0,1.05400156]
[1625707376076,5.22855745,33328.0,33323.0,0.95980156]
[1625707376226,1.70351209,33324.0,33318.0,1.22977097]
[1625707376376,0.057,33323.0,33318.0,1.22977097]
[1625707376601,1.0,33319.0,33317.0,0.002]
[1625707376901,4.6720411,33318.0,33317.0,1.23182182]
[1625707377054,0.26225978,33319.0,33317.0,1.23182182]
[1625707377351,0.17478165,33319.0,33318.0,1.22978771]
[1625707377503,0.17478165,33319.0,33317.0,1.23181714]
[1625707377650,1.0,33319.0,33317.0,1.23181714]
[1625707377803,0.26197632,33318.0,33317.0,0.002]
[1625707378101,0.17459274,33318.0,33317.0,0.002]
[1625707378251,0.65574362,33318.0,33317.0,0.002]
[1625707378851,0.48115088,33318.0,33317.0,0.002]
[1625707379076,1.48115088,33318.0,33317.0,0.002]
[1625707379227,0.48115088,33318.0,33317.0,0.002]
[1625707379676,1.48115088,33318.0,33317.0,0.002]
[1625707380577,0.48115088,33318.0,33317.0,0.002]
[1625707380878,1.57035088,33318.0,33317.0,0.002]
[1625707381028,1.48115088,33318.0,33317.0,0.002]
[1625707381328,1.53815088,33318.0,33317.0,0.002]
[1625707381629,2.75662691,33318.0,33317.0,0.002]
[1625707381929,1.53815088,33318.0,33317.0,0.002]
[1625707382079,1.62945088,33318.0,33317.0,0.002]
[1625707382833,2.84793309,33318.0,33317.0,0.002]
[1625707383881,1.84793309,33318.0,33317.0,0.002]
[1625707384032,2.84793309,33318.0,33317.0,0.002]
[1625707385233,1.84793309,33318.0,33312.0,0.003]
[1625707385537,1.21502241,33316.0,33312.0,0.003]
[1625707385683,0.057,33315.0,33312.0,0.003]
[1625707386211,0.48115088,33313.0,33312.0,0.003]
[1625707386359,0.53815088,33313.0,33312.0,0.003]
[1625707386514,0.53815088,33313.0,33307.0,0.004]
[1625707386661,0.53815088,33313.0,33304.0,1.22677594]
[1625707386812,4.7223,33307.0,33302.0,1.22593982]
[1625707386962,4.7223,33307.0,33301.0,1.22600103]
[1625707386963,5.04574,33307.0,33301.0,1.22600103]
[1625707387118,5.04574,33307.0,33305.0,0.00411709]
[1625707387264,5.04574,33307.0,33303.0,0.00411701]
[1625707387563,6.04574,33307.0,33302.0,1.23010556]
[1625707387866,6.04574,33307.0,33303.0,0.00411713]
[1625707388317,0.48115088,33304.0,33302.0,0.00411708]
[1625707389443,0.48115088,33304.0,33300.0,1.46566967]
[1625707389745,0.48115088,33304.0,33299.0,1.22437772]
[1625707390199,0.53815088,33304.0,33298.0,1.22441041]
[1625707390347,0.48115088,33299.0,33298.0,1.22441041]
[1625707390497,0.77890088,33299.0,33296.0,1.22448834]
[1625707390800,0.77890088,33299.0,33297.0,0.0041103]
[1625707390948,0.77890088,33299.0,33297.0,1.22853136]
[1625707391399,0.77890088,33299.0,33298.0,0.0041102]
[1625707391550,0.77890088,33299.0,33292.0,1.22374361]
[1625707391699,1.77890088,33299.0,33292.0,1.22374361]
[1625707391850,0.77890088,33299.0,33294.0,1.22362571]
[1625707392150,0.77890088,33299.0,33295.0,1.22365993]
[1625707392300,0.77890088,33299.0,33293.0,1.39842938]
[1625707392301,0.24057544,33296.0,33294.0,1.22363925]
[1625707392751,0.24057544,33296.0,33293.0,1.22282879]
[1625707393201,0.24057544,33296.0,33292.0,1.22283833]
[1625707393953,0.24057544,33296.0,33293.0,1.22277379]
[1625707394328,0.24057544,33296.0,33291.0,1.6380312]
[1625707394329,0.24057544,33294.0,33292.0,1.22280746]
[1625707394628,0.24057544,33294.0,33291.0,1.46340128]
[1625707394778,0.24057544,33294.0,33291.0,0.24057544]
[1625707395080,0.24057544,33294.0,33291.0,1.4626296]
[1625707395532,0.24057544,33294.0,33291.0,0.24057544]
[1625707396296,0.24057544,33292.0,33291.0,0.24057544]
[1625707398157,0.24157544,33296.0,33291.0,0.24057544]
[1625707398158,0.24157544,33296.0,33291.0,1.46197659]
[1625707398309,0.24157544,33296.0,33295.0,0.24057544]
[1625707398907,0.24057544,33299.0,33295.0,0.24057544]
[1625707399358,0.001,33296.0,33295.0,0.24057544]
[1625707400409,0.001,33296.0,33295.0,1.70616097]
[1625707400859,0.003,33306.0,33295.0,3.10139385]
[1625707401012,0.003,33306.0,33300.0,4.9974]
[1625707401160,0.003,33306.0,33300.0,5.31663]
[1625707401460,0.003,33306.0,33300.0,5.320719]
[1625707402361,0.003,33306.0,33300.0,5.79778088]
[1625707402810,0.003,33306.0,33300.0,5.80187007]
[1625707406420,0.003,33306.0,33300.0,6.84856132]
[1625707407999,0.003,33306.0,33300.0,5.80187007]
[1625707408164,0.22965,33306.0,33300.0,5.48264007]
[1625707409051,0.057,33305.0,33300.0,5.48264007]
[1625707409209,0.22965,33306.0,33300.0,5.48264007]
[1625707409373,0.001,33301.0,33300.0,5.48264007]
[1625707411157,0.001,33301.0,33300.0,6.75026529]
[1625707412060,0.001,33301.0,33300.0,5.70246007]
[1625707412205,0.001,33301.0,33300.0,5.48264007]
[1625707412355,0.001,33301.0,33300.0,6.53090586]
[1625707417832,0.001,33301.0,33300.0,6.85670586]
[1625707419337,0.001,33301.0,33300.0,8.08133064]
[1625707420087,0.001,33301.0,33300.0,9.4813765]
[1625707425792,0.001,33301.0,33300.0,9.49401224]
[1625707427624,0.22167,33301.0,33300.0,4.17081224]
[1625707427778,0.22167,33301.0,33300.0,4.1581765]
[1625707427900,0.22167,33301.0,33300.0,2.75813064]
[1625707428496,0.46224544,33301.0,33300.0,3.4598033]
[1625707430524,0.24157544,33301.0,33300.0,3.4598033]
[1625707430674,7.544e-05,33301.0,33300.0,3.4598033]
[1625707430826,7.544e-05,33301.0,33300.0,4.86379486]
[1625707433303,0.00107544,33301.0,33300.0,4.86379486]
[1625707433452,0.00107544,33301.0,33300.0,0.48524007]
[1625707433754,0.00107544,33301.0,33300.0,4.87820688]
[1625707434054,0.00107544,33301.0,33300.0,4.89088463]
[1625707434505,0.00107544,33301.0,33300.0,6.47363356]
[1625707437733,0.00107544,33301.0,33300.0,6.75450356]
[1625707438708,0.00107544,33301.0,33300.0,6.47363356]
[1625707444867,0.30350544,33301.0,33300.0,6.47363356]
[1625707445016,0.30350544,33301.0,33300.0,4.89088463]
[1625707445017,0.87959016,33301.0,33300.0,4.89088463]
[1625707445167,0.87959016,33301.0,33300.0,4.87820688]
[1625707445318,4.63939016,33301.0,33300.0,4.87820688]
[1625707445848,6.36872558,33301.0,33300.0,4.87820688]
[1625707446898,7.57840711,33301.0,33300.0,3.4724575]
[1625707449980,6.36872558,33301.0,33300.0,3.4724575]
[1625707453809,7.5770355,33301.0,33300.0,3.4724575]
[1625707454260,7.5770355,33301.0,33300.0,2.24242679]
[1625707455763,8.9564385,33301.0,33300.0,0.12506463]
[1625707455914,8.9564385,33301.0,33298.0,0.66431806]
[1625707456063,8.9564385,33301.0,33297.0,1.05694331]
[1625707456064,8.9564385,33301.0,33297.0,0.70464898]
[1625707456212,4.13729499,33298.0,33297.0,0.70024898]
[1625707456362,4.28299499,33298.0,33297.0,0.66724898]
[1625707456512,4.19429499,33298.0,33295.0,1.29756917]
[1625707456663,0.24057544,33296.0,33295.0,1.29756917]
[1625707456813,3.05586793,33296.0,33295.0,0.24057544]
[1625707456962,3.05586793,33296.0,33295.0,0.24464482]
[1625707457113,3.05586793,33296.0,33295.0,1.30177772]
[1625707457263,1.84916883,33296.0,33295.0,1.30177772]
[1625707460041,3.05496623,33296.0,33295.0,0.24464482]
[1625707460341,1.84916883,33296.0,33295.0,0.24464482]
[1625707460641,1.84916883,33296.0,33295.0,0.00406938]
[1625707460793,3.05419663,33296.0,33295.0,0.00406938]
[1625707460942,4.43074544,33296.0,33295.0,0.00406938]
[1625707461094,4.43074544,33296.0,33294.0,0.001]
[1625707461545,2.75000288,33295.0,33294.0,0.001]
[1625707461691,2.80700288,33295.0,33294.0,0.001]
[1625707462441,2.80700288,33295.0,33294.0,0.00505346]
[1625707462593,4.18148048,33295.0,33294.0,0.00505346]
[1625707462818,3.04757832,33295.0,33294.0,0.001]
[1625707463418,1.84450576,33295.0,33294.0,0.001]
[1625707463868,1.84450576,33295.0,33294.0,0.00505336]
[1625707463869,0.81327616,33295.0,33294.0,0.00505336]
[1625707464096,0.75627616,33295.0,33294.0,0.001]
[1625707464402,0.00107544,33301.0,33294.0,1.06024131]
[1625707464403,0.49872793,33297.0,33294.0,1.06024131]
[1625707464545,0.49872793,33297.0,33296.0,1.2309613]
[1625707464546,0.08610661,33297.0,33296.0,1.2309613]
[1625707464694,0.08610661,33297.0,33296.0,1.95268762]
[1625707464846,0.08613167,33300.0,33296.0,3.36351125]
[1625707464995,0.001,33301.0,33299.0,1.23087039]
[1625707465294,0.001,33301.0,33300.0,1.23095212]
[1625707465595,0.08694975,33301.0,33300.0,0.00405227]
[1625707466045,0.001,33301.0,33300.0,1.23502142]
[1625707466345,0.08786072,33302.0,33300.0,1.23502142]
[1625707466494,0.08580484,33301.0,33300.0,1.23502142]
[1625707466646,0.08580484,33301.0,33300.0,0.24462771]
[1625707466869,0.002,33302.0,33300.0,0.24462771]
[1625707467472,0.002,33302.0,33301.0,0.00405259]
[1625707468674,0.002,33302.0,33301.0,0.24462803]
[1625707478286,0.001,33302.0,33301.0,0.24462803]
[1625707482043,0.32061,33302.0,33301.0,0.24462803]
[1625707482194,1.57654534,33302.0,33301.0,0.24462803]
[1625707483246,0.37761,33302.0,33301.0,0.24462803]
[1625707484070,0.32061,33302.0,33301.0,0.24462803]
[1625707484220,0.001,33302.0,33301.0,0.24462803]
[1625707484671,0.058,33302.0,33301.0,0.24462803]
[1625707485120,0.001,33302.0,33301.0,0.24462803]
[1625707486772,0.24157544,33302.0,33301.0,0.24462803]
[1625707486921,0.61959544,33302.0,33301.0,0.24462803]
[1625707487373,1.81831712,33302.0,33301.0,0.24462803]
[1625707489552,1.76131712,33302.0,33301.0,0.24462803]
[1625707489702,0.56259544,33302.0,33301.0,0.24462803]
[1625707489851,0.24157544,33302.0,33301.0,1.47718874]
[1625707491654,0.24157544,33302.0,33301.0,0.24462803]
[1625707491804,0.24157544,33302.0,33301.0,1.47734749]
[1625707491958,0.29857544,33302.0,33301.0,1.47734749]
[1625707492104,0.24157544,33302.0,33301.0,0.24462803]
[1625707492254,0.24157544,33302.0,33301.0,1.47740153]
[1625707493457,0.29857544,33302.0,33301.0,0.24462803]
[1625707493758,0.24157544,33302.0,33301.0,0.24462803]
[1625707494132,0.24157544,33302.0,33301.0,1.47760799]
[1625707494432,0.29857544,33302.0,33301.0,1.47760799]
[1625707494660,2.52586967,33302.0,33301.0,1.30148597]
[1625707494959,2.52586967,33302.0,33301.0,0.24462803]
[1625707495782,2.52586967,33302.0,33301.0,1.30165]
[1625707496233,2.46886967,33302.0,33301.0,1.30165]
[1625707496534,1.26957057,33302.0,33301.0,1.30165]
[1625707496984,1.26957057,33302.0,33301.0,2.53484972]
[1625707497584,0.24157544,33302.0,33301.0,2.53484972]
[1625707497735,0.58344072,33302.0,33301.0,3.94433983]
[1625707498485,0.66904491,33302.0,33301.0,3.94433983]
[1625707498935,0.42846947,33302.0,33301.0,3.94433983]
[1625707499161,0.34286528,33302.0,33301.0,3.94433983]
[1625707501639,0.001,33302.0,33301.0,3.94433983]
[1625707502240,0.34363833,33302.0,33301.0,3.94433983]
[1625707502544,0.001,33302.0,33301.0,3.94433983]
[1625707504043,0.001,33302.0,33301.0,4.21494983]
[1625707504196,0.34444437,33302.0,33301.0,4.21494983]
[1625707504345,0.34444437,33302.0,33301.0,5.81364997]
[1625707504494,0.002,33307.0,33301.0,5.81364997]
[1625707504495,1.03097771,33306.0,33301.0,5.81364997]
[1625707504655,0.002,33307.0,33302.0,0.01270901]
[1625707504795,0.002,33307.0,33302.0,0.01675782]
[1625707504946,0.2929,33311.0,33306.0,4.70993224]
[1625707505099,0.2929,33311.0,33310.0,2.64293923]
[1625707505246,0.003,33313.0,33310.0,2.98075923]
[1625707505546,0.003,33313.0,33311.0,0.00405047]
[1625707505696,0.003,33313.0,33312.0,1.4086035]
[1625707506147,0.003,33313.0,33312.0,1.41265392]
[1625707506445,0.003,33313.0,33312.0,1.42535017]
[1625707506597,0.003,33313.0,33312.0,3.00990593]
[1625707506973,0.003,33313.0,33312.0,3.49105681]
[1625707509972,0.003,33313.0,33312.0,3.99105681]
[1625707510274,0.003,33313.0,33312.0,3.49105681]
[1625707510722,0.003,33313.0,33312.0,1.90650105]
[1625707511622,0.003,33313.0,33312.0,1.8938048]
[1625707513726,0.003,33313.0,33312.0,0.4852013]
[1625707514023,0.003,33313.0,33312.0,0.48115088]
[1625707514322,0.003,33313.0,33312.0,1.8895043]
[1625707514622,0.003,33313.0,33312.0,1.88544802]
[1625707514773,0.003,33313.0,33312.0,0.48115088]
[1625707514922,0.003,33313.0,33312.0,0.48520724]
[1625707515373,0.003,33313.0,33312.0,0.48115088]
[1625707516213,0.003,33313.0,33312.0,1.888682]
[1625707516350,0.003,33313.0,33312.0,0.48520709]
[1625707516650,0.003,33313.0,33312.0,1.18694579]
[1625707517400,0.68896597,33321.0,33312.0,1.18694579]
[1625707517401,0.001,33314.0,33312.0,1.18694579]
[1625707517551,0.001,33314.0,33312.0,1.18288958]
[1625707517703,0.001,33314.0,33313.0,0.70176178]
[1625707519054,0.001,33314.0,33313.0,0.94233722]
[1625707521009,0.001,33314.0,33313.0,0.24057544]
[1625707522211,0.68823584,33314.0,33313.0,0.24057544]
[1625707522360,0.74523584,33314.0,33313.0,0.24057544]
[1625707522961,0.98581128,33314.0,33313.0,0.24057544]
[1625707523944,1.31294128,33314.0,33313.0,0.24057544]
[1625707525290,2.5156411,33314.0,33313.0,0.24057544]
[1625707526040,3.8901081,33314.0,33313.0,0.24057544]
[1625707526339,3.8891081,33314.0,33313.0,0.24057544]
[1625707528070,4.8891081,33314.0,33313.0,0.24057544]
[1625707528519,6.43419725,33314.0,33313.0,0.24057544]
[1625707529119,6.76377269,33314.0,33308.0,0.001]
[1625707529569,1.88894962,33309.0,33308.0,0.001]
[1625707529721,1.94594962,33309.0,33308.0,0.001]
[1625707531072,1.94594962,33309.0,33308.0,0.24157544]
[1625707534746,2.97659218,33309.0,33308.0,0.24157544]
[1625707535420,2.97659218,33309.0,33308.0,0.24057544]
[1625707536021,4.35075589,33309.0,33308.0,0.24057544]
[1625707536170,2.97659218,33309.0,33308.0,0.24057544]
[1625707536471,4.35093255,33309.0,33308.0,0.24057544]
[1625707536922,8.82253255,33309.0,33308.0,0.24057544]
[1625707539098,9.06310799,33309.0,33308.0,0.24057544]
[1625707539401,9.06310799,33309.0,33303.0,0.24157544]
[1625707539548,1.71790865,33304.0,33303.0,0.24157544]
[1625707539699,2.01949865,33304.0,33303.0,0.24157544]
[1625707539852,3.22143874,33304.0,33303.0,0.24157544]
[1625707539999,4.59446082,33304.0,33303.0,0.24157544]
[1625707541124,5.0756117,33304.0,33303.0,0.24157544]
[1625707541423,6.6186894,33304.0,33303.0,0.24157544]
[1625707542325,5.0756117,33304.0,33303.0,0.24157544]
[1625707547053,7.61779345,33304.0,33303.0,0.24157544]
[1625707547277,7.61779345,33304.0,33303.0,0.24057544]
[1625707548339,7.61779345,33304.0,33299.0,0.24057544]
[1625707548477,7.61779345,33304.0,33299.0,0.12087544]
[1625707548703,2.91173964,33300.0,33299.0,0.06067544]
[1625707548853,2.96873964,33300.0,33299.0,0.06067544]
[1625707549004,4.33864092,33300.0,33299.0,0.06067544]
[1625707549155,4.57921636,33300.0,33299.0,0.06067544]
[1625707550281,4.57921636,33300.0,33298.0,0.001]
[1625707550432,2.91048219,33299.0,33298.0,0.001]
[1625707550581,2.96748219,33299.0,33298.0,0.001]
[1625707551182,3.20805763,33299.0,33298.0,0.001]
[1625707551407,7.42625763,33299.0,33298.0,0.001]
[1625707554562,7.93941916,33299.0,33298.0,0.001]
[1625707556366,7.93941916,33299.0,33293.0,0.001]
[1625707556662,1.19985136,33296.0,33293.0,0.001]
[1625707556812,0.057,33295.0,33293.0,0.001]
[1625707557263,0.48115088,33294.0,33293.0,0.001]
[1625707557416,0.53815088,33294.0,33293.0,0.001]
[1625707562678,0.76192088,33294.0,33293.0,0.001]
[1625707565379,0.76192088,33294.0,33293.0,0.00505092]
[1625707567331,0.76192088,33294.0,33293.0,0.001]
[1625707567481,0.76192088,33294.0,33293.0,0.00505103]
[1625707569284,0.76192088,33294.0,33293.0,0.00405103]
[1625707570711,0.76192088,33294.0,33292.0,0.02645103]
[1625707574617,0.01588746,33293.0,33292.0,0.02645103]
[1625707575068,0.01588746,33293.0,33292.0,0.03049249]
[1625707575669,5.05316192,33293.0,33292.0,0.03049249]
[1625707575821,5.11016192,33293.0,33292.0,0.03049249]
[1625707577471,6.11016192,33293.0,33292.0,0.03049249]
[1625707577622,6.79867481,33293.0,33292.0,0.03049249]
[1625707577847,7.83162709,33293.0,33292.0,0.03049249]
[1625707578597,9.03614555,33293.0,33292.0,0.03049249]
[1625707579048,7.83162709,33293.0,33292.0,0.03049249]
[1625707579348,9.0361057,33293.0,33292.0,0.03049249]
[1625707581151,8.0361057,33293.0,33292.0,0.03049249]
[1625707581976,8.02021824,33293.0,33292.0,0.02645103]
[1625707582126,8.03610743,33293.0,33292.0,0.03049417]
[1625707582428,8.03610743,33293.0,33290.0,0.24057544]
[1625707582577,8.03610743,33293.0,33287.0,0.70383449]
[1625707582578,3.44460261,33291.0,33287.0,0.52841329]
[1625707582727,0.057,33290.0,33287.0,0.52841329]
[1625707582877,1.20551134,33288.0,33287.0,0.001]
[1625707583027,1.26251134,33288.0,33287.0,0.001]
[1625707583328,1.74366222,33288.0,33287.0,0.00503908]
[1625707583778,2.77731957,33288.0,33287.0,0.00503908]
[1625707584903,2.86761957,33288.0,33287.0,0.00503908]
[1625707585433,2.77731957,33288.0,33287.0,0.00503908]
[1625707587157,4.98502138,33288.0,33287.0,0.00503908]
[1625707587308,4.98502138,33288.0,33287.0,0.00403908]
[1625707589790,3.98502138,33288.0,33287.0,0.00403908]
[1625707589940,4.98502138,33288.0,33287.0,0.00403908]
[1625707591447,3.77731957,33288.0,33287.0,0.00403908]
[1625707591743,4.98671422,33288.0,33287.0,0.00403908]
[1625707591892,5.31983422,33288.0,33287.0,0.00403908]
[1625707594671,5.40943422,33288.0,33287.0,0.00403908]
[1625707594820,5.31983422,33288.0,33287.0,0.00403908]
[1625707595571,5.33574403,33288.0,33287.0,0.00403908]
[1625707595721,6.71654029,33288.0,33287.0,0.00403908]
[1625707596171,6.71654029,33288.0,33285.0,0.00403826]
[1625707596323,6.71654029,33288.0,33287.0,0.00403831]
[1625707596623,1.0,33286.0,33285.0,0.00403828]
[1625707596773,5.88995384,33286.0,33285.0,0.00403828]
[1625707597225,10.37925384,33286.0,33285.0,0.00403828]
[1625707597375,10.61982928,33286.0,33285.0,0.00403828]
[1625707597674,10.61982928,33286.0,33284.0,0.52821881]
[1625707597825,10.61982928,33286.0,33283.0,1.23283503]
[1625707597976,7.16764543,33286.0,33284.0,0.52852706]
[1625707598199,3.4530934,33285.0,33284.0,0.53256526]
[1625707598351,3.6003934,33285.0,33284.0,0.53256526]
[1625707598501,4.6003934,33285.0,33284.0,0.53256526]
[1625707598728,5.98232372,33285.0,33284.0,1.23749535]
[1625707599181,5.98232372,33285.0,33284.0,0.53256526]
[1625707599352,4.98232372,33285.0,33280.0,0.08334497]
[1625707599508,4.98232372,33285.0,33272.0,0.003]
[1625707599509,7.28940965,33285.0,33274.0,0.92413275]
[1625707599650,8.28940965,33285.0,33273.0,0.98017096]
[1625707599783,8.28940965,33285.0,33271.0,0.97149774]
[1625707599784,3.61615952,33275.0,33271.0,0.97149774]
[1625707599928,0.057,33274.0,33271.0,0.88069774]
[1625707600079,0.057,33274.0,33263.0,0.24057544]
[1625707600229,4.7399,33267.0,33263.0,0.24057544]
[1625707600378,0.057,33266.0,33263.0,0.24057544]
[1625707600528,0.057,33266.0,33264.0,0.00403481]
[1625707600677,1.057,33266.0,33264.0,0.00403481]
[1625707600828,1.0,33265.0,33264.0,0.00403481]
[1625707600979,1.057,33265.0,33264.0,0.00403481]
[1625707601130,0.057,33265.0,33263.0,0.24057544]
[1625707601281,1.0,33266.0,33263.0,0.24057544]
[1625707601429,0.72172632,33264.0,33263.0,0.24057544]
[1625707601880,0.72172632,33264.0,33263.0,0.24461035]
[1625707602029,0.72172632,33264.0,33263.0,5.04851035]
[1625707602481,0.72172632,33264.0,33263.0,5.04447544]
[1625707603079,0.24057544,33264.0,33263.0,5.04447544]
[1625707606983,0.24057544,33264.0,33263.0,5.33051544]
[1625707607884,0.24057544,33264.0,33263.0,5.33454914]
[1625707608334,0.24157544,33264.0,33263.0,5.34710881]
[1625707608634,0.24157544,33264.0,33263.0,5.33454914]
[1625707608784,0.24157544,33264.0,33263.0,5.04850914]
[1625707609084,0.24157544,33264.0,33263.0,5.06106826]
[1625707609990,0.24157544,33264.0,33263.0,5.04850914]
[1625707610285,0.24157544,33264.0,33263.0,5.06106186]
[1625707610587,0.24157544,33264.0,33263.0,5.04850914]
[1625707611036,0.24157544,33264.0,33263.0,5.35039914]
[1625707611191,0.24157544,33264.0,33263.0,5.3629488]
[1625707611337,0.001,33264.0,33263.0,5.3629488]
[1625707613516,0.001,33264.0,33263.0,6.94286056]
[1625707613666,0.001,33264.0,33263.0,5.3629488]
[1625707614946,0.001,33264.0,33263.0,5.0610588]
[1625707615393,0.001,33264.0,33263.0,6.46532277]
[1625707616668,0.001,33264.0,33263.0,6.45277311]
[1625707619446,0.001,33264.0,33263.0,6.69334855]
[1625707619897,0.001,33264.0,33263.0,7.92197241]
[1625707622679,0.001,33264.0,33263.0,6.51770844]
[1625707622905,0.001,33264.0,33263.0,7.92183845]
[1625707623671,0.001,33264.0,33263.0,7.93438281]
[1625707623973,0.001,33264.0,33263.0,9.51395311]
[1625707630413,0.001,33264.0,33263.0,10.56763394]
[1625707634464,0.001,33264.0,33263.0,10.57647766]
[1625707637466,0.001,33264.0,33263.0,10.66687766]
[1625707637919,0.001,33264.0,33263.0,10.57647766]
[1625707645131,0.001,33264.0,33263.0,11.07647766]
[1625707645504,0.001,33264.0,33263.0,11.16717766]
[1625707645654,0.001,33264.0,33263.0,11.07647766]
[1625707645955,0.001,33264.0,33263.0,12.83670284]
[1625707648658,0.001,33264.0,33263.0,12.92660284]
[1625707648809,0.001,33264.0,33263.0,12.83670284]
[1625707652640,0.001,33264.0,33263.0,12.33670284]
[1625707656317,0.001,33264.0,33263.0,12.83670284]
[1625707656469,0.001,33264.0,33263.0,12.33670284]
[1625707657220,0.001,33264.0,33263.0,12.42670284]
[1625707657371,0.001,33264.0,33263.0,12.77093284]
[1625707657521,0.001,33264.0,33263.0,12.68093284]
[1625707661501,0.001,33264.0,33263.0,12.33670284]
[1625707663606,0.001,33264.0,33263.0,12.42760284]
[1625707663906,0.001,33264.0,33263.0,12.33670284]
[1625707666459,0.001,33264.0,33263.0,12.42570284]
[1625707667058,0.001,33264.0,33263.0,12.33670284]
[1625707671189,0.001,33264.0,33263.0,12.83670284]
[1625707673291,0.001,33264.0,33263.0,12.82382542]
[1625707673516,0.001,33264.0,33263.0,12.83670809]
[1625707673741,0.001,33264.0,33263.0,13.16928809]
[1625707673892,0.001,33264.0,33263.0,13.07938809]
[1625707675095,0.001,33264.0,33263.0,13.17008809]
[1625707675246,0.001,33264.0,33263.0,13.07938809]
[1625707675845,0.001,33264.0,33263.0,12.83670809]
[1625707675997,0.34105562,33272.0,33263.0,13.11577809]
[1625707676154,0.004,33279.0,33271.0,5.30109764]
[1625707676339,0.004,33279.0,33272.0,0.56962224]
[1625707676467,0.34155817,33277.0,33273.0,1.77953022]
[1625707676598,0.34155817,33277.0,33276.0,3.35717374]
[1625707676751,0.004,33279.0,33276.0,3.85717374]
[1625707676901,0.004,33279.0,33276.0,3.86979451]
[1625707677055,0.004,33279.0,33277.0,0.01665858]
[1625707677220,0.004,33279.0,33278.0,1.60157549]
[1625707677362,0.004,33280.0,33278.0,2.40790549]